bitfinex/quotes_ETHUSD_20251218
["timestamp","ask_amount","ask_price","bid_price","bid_amount"]
[1766032394894,18.31291775,2844.1,2843.9,0.02463054]
[1766032395095,18.31291775,2844.1,2843.6,0.02463054]
[1766032395428,18.31291775,2844.1,2843.8,0.02463054]
[1766032399961,10.60273197,2843.9,2843.5,0.02663054]
[1766032400222,7.1812732,2843.8,2843.5,0.02663054]
[1766032400397,4.9726732,2843.8,2843.5,0.02663054]
[1766032400598,12.81133197,2843.9,2843.7,0.02463054]
[1766032400807,12.81133197,2843.9,2843.5,0.02663054]
[1766032401726,12.81133197,2843.9,2843.7,0.02463054]
[1766032402112,16.32764237,2843.9,2843.5,0.02663054]
[1766032402315,16.32764237,2843.9,2843.7,0.02463054]
[1766032402500,18.51056519,2843.9,2843.7,0.02463054]
[1766032403003,18.51056519,2843.9,2843.5,0.02663054]
[1766032403609,2.2086,2843.7,2843.5,0.02663054]
[1766032403812,6.121,2843.7,2843.3,0.02463054]
[1766032404012,3.51666901,2843.6,2843.5,0.02463054]
[1766032404218,3.51666901,2843.6,2843.3,0.02463054]
[1766032404425,3.51666901,2843.6,2843.5,0.02463054]
[1766032404710,3.51666901,2843.6,2843.3,0.02463054]
[1766032404908,9.63766901,2843.6,2843.5,0.02463054]
[1766032405112,11.40127138,2843.6,2843.3,0.02463054]
[1766032405312,9.19267138,2843.6,2843.5,0.02463054]
[1766032405518,9.19267138,2843.6,2843.3,0.02463054]
[1766032405835,9.19267138,2843.6,2843.5,0.02463054]
[1766032406040,9.19267138,2843.6,2843.3,0.02463054]
[1766032406338,9.19267138,2843.6,2843.5,0.02463054]
[1766032406642,9.19267138,2843.6,2843.3,0.02463054]
[1766032406936,9.19267138,2843.6,2843.5,0.02463054]
[1766032407236,9.19267138,2843.6,2843.3,0.02463054]
[1766032407533,9.19267138,2843.6,2843.5,0.02463054]
[1766032407743,9.19267138,2843.6,2843.3,0.02463054]
[1766032407925,9.19267138,2843.6,2843.5,0.02463054]
[1766032408114,9.19267138,2843.6,2843.3,0.02463054]
[1766032408310,9.19267138,2843.6,2843.5,0.02463054]
[1766032408509,9.19267138,2843.6,2843.3,0.02463054]
[1766032408739,9.19267138,2843.6,2843.5,0.02463054]
[1766032409035,9.19267138,2843.6,2843.3,0.02463054]
[1766032409236,9.19267138,2843.6,2843.5,0.02463054]
[1766032409620,9.19267138,2843.6,2843.3,0.02463054]
[1766032409821,9.19267138,2843.6,2843.5,0.02463054]
[1766032410021,9.19267138,2843.6,2843.3,0.02463054]
[1766032410218,3.51642168,2843.8,2843.5,0.02463054]
[1766032410434,3.49182168,2843.8,2843.6,0.02463054]
[1766032410621,7.00824336,2843.8,2843.6,0.02463054]
[1766032411439,7.00824336,2843.8,2843.3,0.02463054]
[1766032411440,6.69033197,2843.7,2843.3,0.02463054]
[1766032411642,6.121,2843.6,2843.5,0.02813236]
[1766032411842,8.10295753,2843.6,2843.5,0.02813236]
[1766032412042,9.41102654,2843.6,2843.5,0.02813236]
[1766032412242,5.49862654,2843.6,2843.5,0.03013236]
[1766032413923,3.51666901,2843.6,2843.5,0.03013236]
[1766032414134,10.10267827,2843.9,2843.5,0.03013236]
[1766032414333,10.10267827,2843.9,2843.7,0.02813236]
[1766032414533,10.10267827,2843.9,2843.5,0.03013236]
[1766032414716,10.10267827,2843.9,2843.7,0.02813236]
[1766032414912,1.67930102,2843.8,2843.5,0.03013236]
[1766032415139,5.66010293,2843.8,2843.7,0.02813236]
[1766032415442,13.08892461,2843.8,2843.5,0.03013236]
[1766032415644,9.57250293,2843.8,2843.7,0.02813236]
[1766032415843,9.17652461,2843.8,2843.5,0.03013236]
[1766032416143,5.66010293,2843.8,2843.7,0.02813236]
[1766032416717,9.17652461,2843.8,2843.5,0.03013236]
[1766032416923,7.49722359,2843.8,2843.5,0.03013236]
[1766032417429,11.40962359,2843.8,2843.5,0.03013236]
[1766032417646,13.61822359,2843.8,2843.5,0.03013236]
[1766032418156,11.40962359,2843.8,2843.5,0.03013236]
[1766032419248,7.89320191,2843.8,2843.7,0.02813236]
[1766032419452,0.001,2843.9,2843.7,0.02813236]
[1766032425955,0.001,2843.9,2843.7,0.58413236]
[1766032426358,0.001,2843.9,2843.7,0.02813236]
[1766032426555,0.001,2843.9,2843.7,0.58413236]
[1766032427735,0.001,2843.9,2843.7,0.02813236]
[1766032436456,0.001,2843.9,2843.7,3.54467002]
[1766032436656,0.001,2843.9,2843.8,0.354667]
[1766032438075,0.001,2843.9,2843.8,0.910667]
[1766032443588,0.001,2843.9,2843.8,0.556]
[1766032446294,0.001,2844.1,2843.8,0.556]
[1766032446496,0.001,2844.1,2844.0,0.02813236]
[1766032457121,0.001,2844.1,2844.0,0.58413236]
[1766032459118,0.001,2844.3,2844.0,0.58413236]
[1766032459327,0.001,2844.3,2844.2,0.02813236]
[1766032468134,0.001,2844.3,2844.0,0.58413236]
[1766032468439,0.001,2844.3,2844.2,0.02813236]
[1766032479352,0.001,2844.3,2844.0,0.03013236]
[1766032479559,0.001,2844.3,2844.2,0.02813236]
[1766032479759,0.58688,2844.3,2844.2,0.02813236]
[1766032485868,0.001,2844.3,2844.2,0.02813236]
[1766032487241,0.001,2844.3,2844.0,0.58613236]
[1766032487463,0.001,2844.3,2844.2,0.02813236]
[1766032494846,0.001,2844.3,2844.2,0.58413236]
[1766032495247,0.001,2844.3,2844.2,0.02813236]
[1766032495442,0.001,2844.3,2844.2,0.58413236]
[1766032497187,0.001,2844.3,2844.1,0.002]
[1766032497388,0.001,2844.3,2844.2,0.02813236]
[1766032512500,0.001,2844.7,2844.2,0.02813236]
[1766032512698,0.001,2845.1,2844.2,0.02813236]
[1766032512699,3.51361617,2846.1,2845.2,6.68743859]
[1766032512864,3.51361617,2846.1,2845.3,0.556]
[1766032513880,3.51361617,2846.1,2845.8,0.02813236]
[1766032514486,7.06351617,2846.1,2845.8,0.02813236]
[1766032514695,8.98766742,2846.1,2845.8,0.02813236]
[1766032515192,8.98766742,2846.1,2845.6,0.02813236]
[1766032515399,5.526,2846.0,2845.6,0.02813236]
[1766032517601,7.0637269,2845.9,2845.6,0.02813236]
[1766032517970,9.0398269,2845.9,2845.6,0.02813236]
[1766032518695,9.0398269,2845.9,2845.4,0.02813236]
[1766032518696,3.5499,2845.7,2845.4,0.02813236]
[1766032518889,0.43502465,2845.9,2845.6,0.02813236]
[1766032519092,3.51370344,2846.0,2845.6,0.02813236]
[1766032519797,7.06360344,2846.0,2845.6,0.02813236]
[1766032520375,3.51370344,2846.0,2845.6,0.02813236]
[1766032520770,7.46898398,2846.1,2845.6,0.02813236]
[1766032520977,5.10866577,2846.1,2845.6,0.02813236]
[1766032521292,0.001,2846.0,2845.6,0.02813236]
[1766032524076,3.5509,2846.0,2845.6,0.02813236]
[1766032524707,9.0407913,2846.0,2845.6,0.02813236]
[1766032524911,12.5545826,2846.0,2845.6,0.02813236]
[1766032525716,7.0285826,2846.0,2845.6,0.02813236]
[1766032525923,1.9761,2845.5,2845.2,0.02813236]
[1766032526087,3.5499,2845.4,2845.2,0.02813236]
[1766032526418,3.5499,2845.4,2845.0,0.02813236]
[1766032526591,3.5499,2845.4,2845.2,0.02813236]
[1766032527487,5.526,2845.5,2845.2,0.02813236]
[1766032532208,10.23288259,2845.3,2844.9,0.02813236]
[1766032532509,12.20898259,2845.3,2844.9,0.02813236]
[1766032532708,5.526,2845.3,2844.9,0.02813236]
[1766032535788,5.526,2845.3,2845.1,0.002]
[1766032536921,3.5499,2845.3,2845.1,0.002]
[1766032537622,9.04054323,2845.4,2845.1,0.002]
[1766032537788,5.526,2845.3,2845.1,0.002]
[1766032538309,9.04057606,2845.3,2845.1,0.002]
[1766032539826,17.45305272,2845.4,2845.1,0.002]
[1766032540025,11.92705272,2845.4,2845.1,0.002]
[1766032540216,5.526,2845.3,2845.1,0.002]
[1766032540626,5.526,2845.3,2844.9,0.02813236]
[1766032541525,3.5499,2845.0,2844.6,0.02813236]
[1766032541838,6.68298259,2845.2,2844.8,0.02813236]
[1766032542021,5.3139,2845.1,2844.8,0.02813236]
[1766032542401,8.82871664,2845.1,2844.9,0.002]
[1766032542726,5.3139,2845.1,2844.9,0.002]
[1766032542915,8.82872691,2845.1,2844.9,0.002]
[1766032543628,5.34642691,2845.1,2844.9,0.002]
[1766032543834,3.4823,2845.0,2844.8,0.02813236]
[1766032544128,5.3139,2844.9,2844.6,0.02813236]
[1766032547326,5.3139,2844.9,2844.8,0.02813236]
[1766032549643,5.3139,2845.0,2844.8,0.02813236]
[1766032550950,0.98994702,2845.3,2844.8,0.02813236]
[1766032551147,8.82812967,2845.6,2845.1,0.02813236]
[1766032551334,6.99652967,2845.6,2845.3,0.02813236]
[1766032551528,3.51422967,2845.6,2845.5,0.02813236]
[1766032552150,6.99652967,2845.6,2845.5,0.02813236]
[1766032554255,6.99652967,2845.6,2845.3,0.02813236]
[1766032554930,5.3139,2845.4,2845.1,0.02813236]
[1766032555453,8.82837842,2845.4,2845.1,0.02813236]
[1766032555847,3.51447842,2845.4,2845.1,0.02813236]
[1766032557426,9.33711738,2845.5,2845.3,0.02813236]
[1766032557625,8.82827835,2845.5,2845.3,0.02813236]
[1766032558832,1.8316,2845.4,2845.0,0.02813236]
[1766032559165,8.82871494,2845.1,2845.0,0.02813236]
[1766032559370,5.3139,2845.3,2844.9,0.002]
[1766032559524,8.82852887,2845.3,2845.0,0.02813236]
[1766032560555,5.3139,2845.2,2845.0,0.02813236]
[1766032561142,3.4823,2844.9,2844.8,0.03013236]
[1766032561338,5.3139,2844.9,2844.8,0.03013236]
[1766032561757,3.4823,2844.9,2844.8,0.03013236]
[1766032561935,3.51502001,2845.0,2844.8,0.03013236]
[1766032561936,8.82892001,2845.0,2844.8,0.03013236]
[1766032562138,5.3139,2845.0,2844.8,0.03013236]
[1766032563839,9.30887932,2845.1,2844.8,0.03013236]
[1766032564167,8.82877133,2845.1,2844.8,0.03013236]
[1766032567074,8.26409881,2845.1,2844.8,0.002]
[1766032567279,9.25304583,2845.1,2844.7,0.02813236]
[1766032567436,9.25304583,2845.1,2844.4,0.02813236]
[1766032567437,5.3139,2844.9,2844.4,0.02813236]
[1766032567646,5.3139,2844.8,2844.6,0.02813236]
[1766032568176,3.4823,2844.5,2844.4,0.02813236]
[1766032568351,3.4823,2844.5,2844.2,0.02813236]
[1766032568352,3.4823,2844.3,2844.2,0.02813236]
[1766032568677,5.3139,2844.3,2844.2,0.02813236]
[1766032569355,5.3139,2844.4,2844.2,0.02813236]
[1766032569560,5.3139,2844.5,2844.2,0.02813236]
[1766032569940,5.3139,2844.5,2844.4,0.02813236]
[1766032570457,5.3139,2844.5,2844.2,0.02813236]
[1766032572937,5.34719467,2844.5,2844.1,0.03013236]
[1766032573143,5.406,2844.4,2844.1,0.03013236]
[1766032573452,8.92159467,2844.5,2844.1,0.03013236]
[1766032574475,5.406,2844.5,2844.3,0.02813236]
[1766032576070,3.5136,2844.5,2844.3,0.02813236]
[1766032577073,5.406,2844.5,2844.3,0.02813236]
[1766032578173,8.92155935,2844.5,2844.3,0.02813236]
[1766032579262,5.406,2844.4,2844.3,0.02813236]
[1766032580566,3.5136,2844.4,2844.3,0.02813236]
[1766032580763,3.51555935,2844.5,2844.3,0.02813236]
[1766032580957,3.5136,2844.5,2844.3,0.02813236]
[1766032581156,1.8924,2844.4,2844.3,0.02813236]
[1766032581357,5.406,2844.4,2844.3,0.02813236]
[1766032582177,8.92167993,2844.4,2844.3,0.02813236]
[1766032582349,5.406,2844.4,2844.3,0.02813236]
[1766032582550,8.92167993,2844.4,2844.3,3.236e-05]
[1766032582749,8.92167993,2844.4,2844.3,0.00203236]
[1766032583679,5.406,2844.4,2844.3,0.00203236]
[1766032585900,3.5136,2844.3,2844.1,0.002]
[1766032586053,5.406,2844.1,2844.0,0.002]
[1766032586875,3.5136,2844.1,2844.0,0.002]
[1766032587578,3.5159585,2844.2,2844.0,0.002]
[1766032587783,8.9219585,2844.2,2844.0,0.002]
[1766032590391,6.06463802,2844.2,2843.9,0.02813236]
[1766032590892,0.65863802,2844.2,2843.9,0.02813236]
[1766032591079,5.406,2844.1,2843.9,0.02813236]
[1766032591383,5.406,2844.1,2844.0,0.002]
[1766032593152,8.92205077,2844.1,2844.0,0.002]
[1766032594877,8.74726787,2844.1,2843.7,0.002]
[1766032595077,5.406,2843.9,2843.7,0.03013236]
[1766032595387,5.406,2844.0,2843.7,3.236e-05]
[1766032595584,8.34176387,2844.1,2843.7,3.236e-05]
[1766032595990,8.34176387,2844.1,2843.6,0.002]
[1766032596287,1.8924,2843.5,2843.2,0.002]
[1766032596490,8.92291636,2843.4,2843.2,0.03013236]
[1766032596874,7.03383272,2843.4,2843.2,0.002]
[1766032597072,5.406,2843.3,2843.2,0.002]
[1766032597611,0.46438023,2843.8,2843.2,0.002]
[1766032597612,3.51642168,2843.8,2843.2,0.002]
[1766032597919,3.51634441,2843.9,2843.5,0.02813236]
[1766032598076,10.17226009,2844.0,2843.5,0.02813236]
[1766032598409,3.51642168,2843.8,2843.5,0.02813236]
[1766032598557,7.03284336,2843.8,2843.5,0.02813236]
[1766032598762,12.43884336,2843.8,2843.5,0.02813236]
[1766032599559,5.87038023,2843.7,2843.2,0.002]
[1766032599894,0.46438023,2843.7,2843.4,0.02813236]
[1766032600269,5.87038023,2843.7,2843.4,0.02813236]
[1766032600476,8.92278827,2843.6,2843.4,0.02813236]
[1766032600689,3.98093184,2843.7,2843.5,0.002]
[1766032600690,9.38698101,2843.7,2843.5,0.002]
[1766032601266,5.406,2843.6,2843.5,0.002]
[1766032601466,3.5136,2843.5,2843.4,0.02813236]
[1766032601892,8.92945677,2843.7,2843.4,0.02813236]
[1766032601893,3.98098101,2843.7,2843.4,0.02813236]
[1766032602097,0.46438023,2843.7,2843.4,0.02813236]
[1766032602297,1.25004169,2844.0,2843.6,0.02813236]
[1766032602298,4.9353,2844.0,2843.6,0.02813236]
[1766032602501,3.51630889,2843.9,2843.6,0.02813236]
[1766032603773,3.51621503,2844.0,2843.8,0.02813236]
[1766032604511,3.2154,2844.2,2843.8,0.02813236]
[1766032604666,4.9353,2844.2,2843.8,0.02813236]
[1766032605697,3.51605077,2844.1,2843.8,0.02813236]
[1766032606067,7.03210154,2844.1,2843.8,0.02813236]
[1766032606380,10.24750154,2844.1,2843.8,0.02813236]
[1766032606785,3.51605077,2844.1,2843.8,0.02813236]
[1766032607100,3.51582173,2844.3,2843.8,0.02813236]
[1766032607298,0.001,2844.4,2844.0,0.02813236]
[1766032607668,3.51668171,2844.4,2844.2,0.02813236]
[1766032609895,3.51668171,2844.4,2844.0,0.02813236]
[1766032609896,0.001,2844.4,2844.0,0.02813236]
[1766032610071,0.001,2844.4,2844.2,0.02813236]
[1766032612709,4.9363,2844.4,2844.2,0.02813236]
[1766032613005,3.2154,2844.3,2844.2,0.02813236]
[1766032613508,4.9363,2844.4,2844.2,0.02813236]
[1766032614493,8.45206266,2844.4,2844.2,0.02813236]
[1766032615313,4.9353,2844.3,2844.2,0.02813236]
[1766032616311,8.45110353,2844.3,2844.2,0.02813236]
[1766032616518,8.45110353,2844.3,2844.0,0.02813236]
[1766032617321,0.001,2844.4,2844.0,0.02813236]
[1766032617617,4.9353,2844.3,2844.0,0.02813236]
[1766032617919,4.9353,2844.3,2844.2,0.02813236]
[1766032618127,4.9363,2844.4,2844.2,0.02813236]
[1766032618621,0.001,2844.4,2844.2,0.02813236]
[1766032620501,4.9353,2844.3,2844.2,3.236e-05]
[1766032621094,3.2154,2844.3,2844.0,0.02813236]
[1766032621294,0.001,2844.4,2844.0,0.02813236]
[1766032621496,3.2154,2844.3,2844.0,3.236e-05]
[1766032621720,3.2154,2844.1,2844.0,3.236e-05]
[1766032621917,8.45120208,2844.3,2844.0,3.236e-05]
[1766032622308,3.51669213,2844.4,2844.2,0.02813236]
[1766032622498,8.45199213,2844.4,2844.2,0.02813236]
[1766032623308,4.9353,2844.3,2844.2,0.02813236]
[1766032623708,1.19675899,2844.3,2844.0,3.236e-05]
[1766032623912,3.51676733,2844.4,2844.0,3.236e-05]
[1766032624426,3.51676733,2844.4,2844.2,0.02813236]
[1766032625606,0.001,2844.4,2844.2,0.02813236]
[1766032630255,8.45198524,2844.4,2844.2,0.02813236]
[1766032630467,4.9363,2844.4,2844.2,0.02813236]
[1766032630644,8.45201746,2844.4,2844.2,0.02813236]
[1766032631958,3.51671746,2844.4,2844.2,0.02813236]
[1766032632259,0.001,2844.4,2844.2,0.02813236]
[1766032634476,3.3679,2844.4,2844.2,0.02813236]
[1766032634679,5.0842,2844.4,2844.2,0.02813236]
[1766032634878,5.0832,2844.3,2844.2,0.02813236]
[1766032635346,5.0842,2844.4,2844.2,0.02813236]
[1766032638282,8.59997537,2844.4,2844.2,0.02813236]
[1766032640881,0.001,2844.4,2844.2,0.02813236]
[1766032641884,5.0842,2844.4,2844.2,0.02813236]
[1766032644697,3.51580353,2844.3,2844.2,0.02813236]
[1766032645800,8.59993792,2844.4,2844.2,0.02813236]
[1766032650361,3.51673792,2844.4,2844.2,0.02813236]
[1766032650863,8.59993792,2844.4,2844.2,0.02813236]
[1766032652724,9.24693606,2844.4,2844.2,0.02813236]
[1766032652932,11.04637398,2844.4,2844.1,0.002]
[1766032653096,6.68775121,2844.3,2843.6,0.002]
[1766032653302,6.68775121,2844.3,2843.6,0.14293414]
[1766032653303,1.7163,2843.8,2843.6,0.14293414]
[1766032653622,5.0832,2843.7,2843.6,0.002]
[1766032654430,5.0832,2843.6,2843.5,0.002]
[1766032654584,5.0832,2843.6,2843.2,0.03013236]
[1766032654585,0.50832,2843.7,2843.2,0.03013236]
[1766032654785,0.1409545,2843.9,2843.2,0.03013236]
[1766032654989,5.0832,2843.6,2843.4,0.02813236]
[1766032655520,3.51647478,2843.8,2843.4,0.02813236]
[1766032655707,3.51647478,2843.8,2843.6,0.02813236]
[1766032658132,5.0832,2843.7,2843.4,0.03013236]
[1766032658426,7.03294956,2843.8,2843.4,0.03013236]
[1766032658630,5.0832,2843.6,2843.4,0.03013236]
[1766032659010,5.0832,2843.7,2843.4,0.03013236]
[1766032659886,8.59978887,2843.7,2843.4,0.03013236]
[1766032663707,8.60078887,2843.7,2843.4,0.03013236]
[1766032664031,0.001,2843.7,2843.4,0.03013236]
[1766032664193,3.5175494,2843.7,2843.4,0.03013236]
[1766032668224,0.001,2843.7,2843.4,0.03013236]
[1766032669395,3.51634842,2843.9,2843.6,0.02813236]
[1766032669816,12.03999684,2843.9,2843.6,0.02813236]
[1766032670096,13.25809143,2843.9,2843.6,0.02813236]
[1766032670305,9.74174301,2843.9,2843.6,0.02813236]
[1766032671100,13.25809143,2843.9,2843.6,0.02813236]
[1766032671299,9.74174301,2843.9,2843.6,0.02813236]
[1766032671600,5.0073,2843.8,2843.6,0.02813236]
[1766032672124,4.73544301,2843.9,2843.6,0.02813236]
[1766032672324,3.51734842,2843.9,2843.6,0.02813236]
[1766032673041,0.001,2844.4,2843.8,0.02813236]
[1766032673348,0.001,2844.4,2844.2,0.02813236]
[1766032674027,8.52398133,2844.4,2844.2,0.02813236]
[1766032674416,5.0073,2844.3,2844.0,0.02813236]
[1766032676611,8.52398133,2844.4,2844.0,0.02813236]
[1766032679834,5.0083,2844.4,2844.0,0.02813236]
[1766032680037,0.001,2844.4,2844.0,0.02813236]
[1766032680437,0.001,2844.4,2844.2,0.02813236]
[1766032685749,0.16904565,2844.8,2844.2,0.02813236]
[1766032685930,0.001,2844.9,2844.6,0.02813236]
[1766032688622,0.001,2844.9,2844.8,0.02813236]
[1766032688825,0.001,2845.1,2844.8,0.02813236]
[1766032689025,0.001,2845.1,2845.0,0.02813236]
[1766032689334,0.00059368,2845.3,2845.0,0.02813236]
[1766032690250,0.00059368,2845.3,2845.1,0.02813236]
[1766032694153,0.00059368,2845.3,2845.0,0.02813236]
[1766032694555,0.00059368,2845.3,2845.2,0.02813236]
[1766032695456,0.00059368,2845.3,2845.0,0.02813236]
[1766032695661,1.40891914,2845.3,2844.6,0.02813236]
[1766032695957,0.405504,2845.0,2844.2,0.02813236]
[1766032696159,4.8483,2844.7,2844.3,0.556]
[1766032696337,7.0303712,2844.8,2844.3,0.556]
[1766032696538,7.0303712,2844.8,2844.1,0.002]
[1766032696539,4.8483,2844.7,2844.1,0.002]
[1766032696757,8.32995872,2844.8,2844.2,0.02813236]
[1766032696958,3.275,2844.5,2844.2,0.02813236]
[1766032697136,8.32995872,2844.8,2844.2,0.02813236]
[1766032697556,4.0711856,2844.8,2844.4,0.02813236]
[1766032697732,3.5151856,2844.8,2844.4,0.02813236]
[1766032697929,3.65608549,2844.8,2844.4,0.02813236]
[1766032698460,3.51514242,2844.9,2844.6,0.02813236]
[1766032698627,3.51514242,2844.9,2844.4,0.02813236]
[1766032698628,4.8483,2844.8,2844.4,0.02813236]
[1766032698828,4.8483,2844.6,2844.4,0.02813236]
[1766032699351,4.8483,2844.6,2844.2,0.02813236]
[1766032699545,3.275,2844.6,2844.2,0.02813236]
[1766032699746,1.20194696,2844.7,2844.2,0.02813236]
[1766032699747,4.8483,2844.4,2844.2,0.02813236]
[1766032699950,4.8483,2844.4,2844.1,0.002]
[1766032700250,1.20194696,2844.7,2843.8,0.02813236]
[1766032700251,4.8483,2844.1,2843.8,0.02813236]
[1766032700433,4.8483,2844.1,2843.5,0.002]
[1766032700629,4.8483,2844.1,2843.8,0.02813236]
[1766032701034,3.51592714,2844.2,2843.5,0.002]
[1766032701236,7.03185428,2844.2,2843.8,0.02813236]
[1766032701432,7.79761533,2844.2,2843.8,0.02813236]
[1766032701763,4.8483,2844.2,2843.8,0.02813236]
[1766032701931,8.98990746,2844.3,2843.8,0.02813236]
[1766032702131,3.51592714,2844.2,2843.5,0.002]
[1766032702331,1.5733,2844.0,2843.5,0.002]
[1766032702538,7.03194735,2844.2,2843.5,0.002]
[1766032702744,4.8483,2844.1,2843.5,0.002]
[1766032703358,7.03194735,2844.2,2843.5,0.002]
[1766032703553,1.5733,2844.0,2843.5,0.002]
[1766032703754,4.8483,2844.0,2843.5,0.002]
[1766032704742,8.22041894,2844.0,2843.5,0.002]
[1766032704944,7.0323942,2844.0,2843.5,0.002]
[1766032705140,4.8483,2843.9,2843.5,0.002]
[1766032705341,7.0323942,2844.0,2843.5,0.002]
[1766032705669,3.5161971,2844.0,2843.5,0.002]
[1766032705869,4.8483,2843.8,2843.5,0.002]
[1766032706038,1.18806942,2843.8,2843.5,0.002]
[1766032706237,7.0323942,2844.0,2843.5,0.002]
[1766032706433,4.8483,2843.8,2843.5,0.002]
[1766032706644,8.36484249,2843.8,2843.5,0.002]
[1766032706861,4.8483,2843.7,2843.5,0.002]
[1766032707065,3.275,2843.7,2843.5,0.002]
[1766032707364,4.8483,2843.6,2843.5,0.002]
[1766032708353,3.275,2843.7,2843.4,0.002]
[1766032708559,4.8483,2843.5,2843.4,0.002]
[1766032709365,4.54757061,2843.6,2843.4,0.002]
[1766032709571,4.8483,2843.5,2843.4,0.002]
[1766032711367,8.36509268,2843.5,2843.2,0.03013236]
[1766032711759,4.8483,2843.4,2843.2,0.03013236]
[1766032713968,4.54754534,2843.6,2843.2,0.03013236]
[1766032714143,4.8483,2843.5,2843.2,0.03013236]
[1766032717078,8.3650974,2843.5,2843.2,0.03013236]
[1766032717878,4.8483,2843.4,2843.2,0.03013236]
[1766032718676,3.5167974,2843.5,2843.2,0.03013236]
[1766032718846,7.73700655,2843.5,2843.1,0.002]
[1766032719045,4.8483,2843.2,2843.1,0.002]
[1766032719254,7.03365889,2843.5,2843.0,0.002]
[1766032719481,1.5733,2843.3,2843.0,0.002]
[1766032719665,4.8483,2843.1,2843.0,0.002]
[1766032720785,4.8483,2843.5,2843.0,0.002]
[1766032720984,4.8483,2843.2,2843.0,0.002]
[1766032721862,4.8483,2843.2,2842.9,0.002]
[1766032721863,4.7888,2843.3,2842.9,0.002]
[1766032722062,6.68682475,2843.1,2842.4,0.002]
[1766032722273,1.5673,2842.7,2842.4,0.002]
[1766032722456,4.7888,2842.6,2842.4,0.002]
[1766032722856,3.51782845,2842.7,2842.4,0.002]
[1766032723191,8.30662845,2842.7,2842.4,0.002]
[1766032723780,4.7888,2842.6,2842.5,0.002]
[1766032724085,4.7888,2842.6,2842.4,0.002]
[1766032724768,4.7888,2842.8,2842.5,0.02813236]
[1766032724968,8.3064339,2842.9,2842.5,0.02813236]
[1766032725388,8.3064339,2842.9,2842.7,0.02813236]
[1766032725687,3.51743197,2843.0,2842.7,0.02813236]
[1766032726185,3.51734225,2843.1,2842.7,0.02813236]
[1766032726385,3.98145552,2843.3,2842.7,0.02813236]
[1766032726386,3.51704005,2843.3,2842.9,0.02813236]
[1766032726553,0.68690543,2843.2,2842.9,0.02813236]
[1766032726767,8.30584005,2843.3,2842.9,0.02813236]
[1766032728094,4.7888,2843.2,2842.9,0.02813236]
[1766032729469,4.7888,2843.1,2842.5,0.02813236]
[1766032729672,3.2215,2843.1,2842.5,0.02813236]
[1766032729872,3.2215,2842.9,2842.7,0.02813236]
[1766032730074,4.7888,2842.9,2842.7,0.02813236]
[1766032730372,7.0343275,2843.2,2842.7,0.02813236]
[1766032730601,3.2215,2842.8,2842.7,0.02813236]
[1766032730798,4.7888,2842.8,2842.7,0.02813236]
[1766032731003,7.0343275,2843.2,2842.7,0.02813236]
[1766032731293,7.0343275,2843.2,2842.5,0.02813236]
[1766032731498,4.07295887,2843.4,2842.5,0.02813236]
[1766032731499,3.51741118,2843.0,2842.5,0.02813236]
[1766032731796,4.7888,2842.9,2842.5,0.02813236]
[1766032732167,7.03482236,2843.0,2842.5,0.02813236]
[1766032732368,4.7888,2842.9,2842.5,0.02813236]
[1766032732704,1.5673,2842.8,2842.5,0.02813236]
[1766032732886,7.7383046,2843.0,2842.5,0.02813236]
[1766032732887,4.7888,2842.6,2842.5,0.02813236]
[1766032733407,7.7383046,2843.0,2842.5,0.02813236]
[1766032733408,4.7888,2842.9,2842.5,0.02813236]
[1766032733694,8.30645864,2842.8,2842.5,0.02813236]
[1766032733899,4.7888,2842.7,2842.5,0.02813236]
[1766032734104,8.30645864,2842.8,2842.5,0.02813236]
[1766032737581,3.51765864,2842.8,2842.5,0.02813236]
[1766032737934,4.7888,2842.7,2842.5,0.03013236]
[1766032738609,3.51758477,2842.9,2842.5,0.03013236]
[1766032738801,8.30627254,2843.0,2842.5,0.03013236]
[1766032739001,8.30627254,2843.0,2842.7,0.02813236]
[1766032739810,3.51747254,2843.0,2842.7,0.02813236]
[1766032740310,4.7888,2842.9,2842.5,0.03013236]
[1766032740532,7.03494508,2843.0,2842.5,0.002]
[1766032740812,10.55334714,2842.7,2842.2,0.002]
[1766032740987,10.55334714,2842.7,2842.0,0.03013236]
[1766032740988,0.405504,2842.6,2842.0,0.002]
[1766032741194,0.405504,2842.5,2841.7,0.03013236]
[1766032741389,0.405504,2842.5,2841.7,3.236e-05]
[1766032741590,3.2215,2842.0,2841.7,3.236e-05]
[1766032741902,4.7888,2841.8,2841.7,3.236e-05]
[1766032742783,8.30769647,2841.8,2841.7,3.236e-05]
[1766032742983,4.7888,2841.8,2841.7,3.236e-05]
[1766032743209,0.46438023,2842.3,2841.7,3.236e-05]
[1766032743413,3.51782232,2842.7,2842.1,0.02813236]
[1766032743414,0.46438023,2842.7,2842.1,0.02813236]
[1766032743613,4.7888,2842.5,2842.1,0.02813236]
[1766032743909,4.7888,2842.1,2842.0,0.02813236]
[1766032744111,4.7888,2842.1,2841.8,0.02813236]
[1766032744519,4.7888,2842.3,2841.8,0.02813236]
[1766032744692,1.5673,2842.0,2841.7,3.236e-05]
[1766032744892,11.82639198,2841.9,2841.7,3.236e-05]
[1766032745109,4.7888,2841.8,2841.7,3.236e-05]
[1766032745488,9.49023519,2841.9,2841.7,3.236e-05]
[1766032745696,4.7888,2841.9,2841.7,3.236e-05]
[1766032745889,4.7888,2842.2,2841.7,3.236e-05]
[1766032746213,7.4420589,2842.3,2841.8,0.02813236]
[1766032746422,4.7888,2842.1,2841.8,0.02813236]
[1766032746636,4.7888,2842.2,2841.8,0.02813236]
[1766032746920,8.30699551,2842.4,2842.0,0.02813236]
[1766032747124,8.79688786,2842.4,2842.0,0.02813236]
[1766032751630,4.5434,2842.3,2842.0,0.02813236]
[1766032752828,8.06176545,2842.3,2842.0,0.02813236]
[1766032753337,8.06176545,2842.3,2842.0,0.03013236]
[1766032753726,3.51836545,2842.3,2842.0,0.002]
[1766032753929,4.5249,2842.2,2842.0,0.002]
[1766032755108,8.04334566,2842.2,2842.0,0.002]
[1766032756443,4.5249,2842.1,2842.0,0.002]
[1766032757739,8.04342503,2842.1,2842.0,0.002]
[1766032758840,4.79539748,2842.1,2841.8,0.02813236]
[1766032759135,3.51852503,2842.1,2841.8,0.02813236]
[1766032760137,4.5249,2842.3,2842.0,0.02813236]
[1766032761324,0.001,2842.1,2842.0,0.02813236]